[Event "20th Rochefort Chess Festival - Masters"]
[Site "Rochefort, France"]
[Date "2022.02.16"]
[Round "7.5"]
[White "Duboue, Peio"]
[Black "Suarez Uriel, Adrian"]
[Result "1/2-1/2"]
[TimeControl "1h30 + [30'']"]
[WhiteElo "2412"]
[BlackElo "2348"]

1. e4 {[%clk 01:30:59]} c5 {[%clk 01:29:17]} {[%emt 00:01:40]} 2. c3 {[%clk
01:31:27]} {[%emt 00:00:05]} Nf6 {[%clk 01:29:43]} {[%emt 00:00:04]} 3. e5
{[%clk 01:31:55]} {[%emt 00:00:03]} Nd5 {[%clk 01:30:04]} {[%emt 00:00:08]} 4.
d4 {[%clk 01:32:23]} {[%emt 00:00:02]} cxd4 {[%clk 01:30:28]} {[%emt 00:00:06]}
5. Nf3 {[%clk 01:32:50]} {[%emt 00:00:03]} e6 {[%clk 01:30:52]} {[%emt
00:00:06]} 6. cxd4 {[%clk 01:33:16]} {[%emt 00:00:04]} b6 {[%clk 01:31:19]}
{[%emt 00:00:04]} 7. Nc3 {[%clk 01:33:37]} {[%emt 00:00:09]} Nxc3 {[%clk
01:31:44]} {[%emt 00:00:04]} 8. bxc3 {[%clk 01:34:05]} {[%emt 00:00:02]} Qc7
{[%clk 01:32:09]} {[%emt 00:00:06]} 9. Bd2 {[%clk 01:34:31]} {[%emt 00:00:04]}
Bb7 {[%clk 01:32:35]} {[%emt 00:00:05]} 10. Bd3 {[%clk 01:34:56]} {[%emt
00:00:04]} d6 {[%clk 01:33:01]} {[%emt 00:00:04]} 11. O-O {[%clk 01:35:21]}
{[%emt 00:00:05]} Nd7 {[%clk 01:33:28]} {[%emt 00:00:03]} 12. Ng5 {[%clk
01:35:44]} {[%emt 00:00:07]} dxe5 {[%clk 01:33:54]} {[%emt 00:00:05]} 13. Qh5
{[%clk 01:36:09]} {[%emt 00:00:04]} g6 {[%clk 01:34:20]} {[%emt 00:00:04]} 14.
Qh3 {[%clk 01:36:37]} {[%emt 00:00:02]} Be7 {[%clk 01:34:46]} {[%emt 00:00:05]}
15. Rae1 {[%clk 01:36:37]} {[%emt 00:00:30]} Rc8 {[%clk 01:34:44]} {[%emt
00:00:32]} 16. f4 {[%clk 01:36:30]} {[%emt 00:00:37]} Bxg5 {[%clk 01:34:39]}
{[%emt 00:00:35]} 17. fxg5 {[%clk 01:36:56]} {[%emt 00:00:04]} O-O {[%clk
01:35:07]} {[%emt 00:00:03]} 18. Qh6 {[%clk 01:35:44]} {[%emt 00:01:42]} exd4
{[%clk 01:22:25]} {[%emt 00:13:12]} 19. cxd4 {[%clk 01:36:08]} {[%emt
00:00:05]} Qd6 {[%clk 01:20:18]} {[%emt 00:02:38]} 20. Rf4 {[%clk 01:29:26]}
{[%emt 00:07:11]} f5 {[%clk 01:20:32]} {[%emt 00:00:16]} 21. gxf6 {[%clk
01:29:21]} {[%emt 00:00:35]} Rxf6 {[%clk 01:16:45]} {[%emt 00:04:17]} 22. Rxf6
{[%clk 01:21:50]} {[%emt 00:08:00]} Nxf6 {[%clk 01:16:31]} {[%emt 00:00:44]} 23.
Qh4 {[%clk 01:07:26]} {[%emt 00:14:54]} Rf8 {[%clk 01:05:49]} {[%emt 00:11:13]}
24. Bh6 {[%clk 01:00:48]} {[%emt 00:07:07]} Rf7 {[%clk 00:59:56]} {[%emt
00:06:24]} 25. Re3 {[%clk 00:57:20]} {[%emt 00:03:58]} Qd5 {[%clk 00:37:21]}
{[%emt 00:23:05]} 26. Rg3 {[%clk 00:45:47]} {[%emt 00:12:02]} Qh5 {[%clk
00:30:44]} {[%emt 00:07:07]} 27. Qxh5 {[%clk 00:38:12]} {[%emt 00:08:06]} Nxh5
{[%clk 00:31:02]} {[%emt 00:00:12]} 28. Re3 {[%clk 00:38:37]} {[%emt 00:00:04]}
Bd5 {[%clk 00:31:28]} {[%emt 00:00:04]} 29. Be4 {[%clk 00:34:25]} {[%emt
00:04:42]} Ng7 {[%clk 00:16:25]} {[%emt 00:15:32]} 30. Bxd5 {[%clk 00:30:56]}
{[%emt 00:03:59]} exd5 {[%clk 00:16:41]} {[%emt 00:00:15]} 31. g4 {[%clk
00:20:52]} {[%emt 00:10:34]} Rd7 {[%clk 00:17:05]} {[%emt 00:00:06]} 32. Kg2
{[%clk 00:19:44]} {[%emt 00:01:37]} Kf7 {[%clk 00:17:10]} {[%emt 00:00:25]} 33.
Bxg7 {[%clk 00:19:09]} {[%emt 00:01:03]} Kxg7 {[%clk 00:17:32]} {[%emt
00:00:11]} 34. Kg3 {[%clk 00:18:51]} {[%emt 00:00:48]} h6 {[%clk 00:16:55]}
{[%emt 00:01:07]} 35. g5 {[%clk 00:17:30]} {[%emt 00:01:50]} hxg5 {[%clk
00:17:18]} {[%emt 00:00:07]} 36. Kg4 {[%clk 00:17:27]} {[%emt 00:00:33]} Rf7
{[%clk 00:14:03]} {[%emt 00:03:45]} 37. Kxg5 {[%clk 00:16:56]} {[%emt
00:01:01]} Rf5+ {[%clk 00:14:27]} {[%emt 00:00:06]} 38. Kg4 {[%clk 00:17:19]}
{[%emt 00:00:07]} Kf7 {[%clk 00:14:33]} {[%emt 00:00:24]} 39. Ra3 {[%clk
00:12:54]} {[%emt 00:04:55]} a5 {[%clk 00:14:37]} {[%emt 00:00:26]} 40. Rb3
{[%clk 00:13:13]} {[%emt 00:00:11]} Rf2 {[%clk 00:14:09]} {[%emt 00:00:58]} 41.
Rxb6 {[%clk 00:12:58]} {[%emt 00:00:46]} Rxh2 {[%clk 00:13:11]} {[%emt
00:01:28]} 42. Rb7+ {[%clk 00:10:19]} {[%emt 00:03:09]} Ke6 {[%clk 00:13:35]}
{[%emt 00:00:06]} 43. Rb6+ {[%clk 00:10:46]} {[%emt 00:00:04]} Kd7 {[%clk
00:13:12]} {[%emt 00:00:52]} 44. Rxg6 {[%clk 00:11:03]} {[%emt 00:00:12]} Rxa2
{[%clk 00:05:54]} {[%emt 00:07:48]} 45. Kf5 {[%clk 00:11:30]} {[%emt 00:00:03]}
Re2 {[%clk 00:06:16]} {[%emt 00:00:08]} 46. Ra6 {[%clk 00:11:33]} {[%emt
00:00:27]} a4 {[%clk 00:06:35]} {[%emt 00:00:11]} 47. Rxa4 {[%clk 00:10:46]}
{[%emt 00:01:17]} Kc6 {[%clk 00:07:04]} 48. Rb4 {[%clk 00:10:25]} {[%emt
00:00:51]} Kc7 {[%emt 00:01:19]} 1/2-1/2

[Event "20th Rochefort Chess Festival - Masters"]
[Site "Rochefort, France"]
[Date "2022.02.16"]
[Round "7.1"]
[White "Galperin, Platon"]
[Black "Demuth, Adrien"]
[Result "1/2-1/2"]
[TimeControl "1h30 + [30'']"]
[WhiteElo "2522"]
[BlackElo "2489"]

1. d4 {[%clk 01:21:10]} {[%emt 00:09:49]} f5 {[%clk 01:30:35]} {[%emt
00:00:25]} 2. Nc3 {[%clk 01:21:33]} {[%emt 00:00:07]} Nf6 {[%clk 01:30:55]}
{[%emt 00:00:11]} 3. Bg5 {[%clk 01:21:59]} {[%emt 00:00:04]} d5 {[%clk
01:31:18]} {[%emt 00:00:07]} 4. e3 {[%clk 01:22:24]} {[%emt 00:00:05]} e6
{[%clk 01:31:15]} {[%emt 00:00:32]} 5. Nf3 {[%clk 01:22:49]} {[%emt 00:00:05]}
Be7 {[%clk 01:30:59]} {[%emt 00:00:47]} 6. Bd3 {[%clk 01:23:14]} {[%emt
00:00:05]} Ne4 {[%clk 01:30:28]} {[%emt 00:01:01]} 7. Bxe7 {[%clk 01:18:41]}
{[%emt 00:05:03]} Qxe7 {[%clk 01:30:54]} {[%emt 00:00:04]} 8. O-O {[%clk
01:18:52]} {[%emt 00:00:18]} O-O {[%clk 01:25:47]} {[%emt 00:05:37]} 9. Ne2
{[%clk 01:16:49]} {[%emt 00:02:33]} c5 {[%clk 01:24:53]} {[%emt 00:01:24]} 10.
c4 {[%clk 01:17:02]} {[%emt 00:00:17]} dxc4 {[%clk 01:24:12]} {[%emt 00:01:12]}
11. Bxc4 {[%clk 01:17:14]} {[%emt 00:00:17]} Nd6 {[%clk 01:24:16]} {[%emt
00:00:27]} 12. b3 {[%emt 00:21:05]} 1/2-1/2

[Event "20th Rochefort Chess Festival - Masters"]
[Site "Rochefort, France"]
[Date "2022.02.16"]
[Round "7.4"]
[White "Mirzoev, Emil"]
[Black "Larkin, Vladyslav"]
[Result "1-0"]
[TimeControl "1h30 + [30'']"]
[WhiteElo "2460"]
[BlackElo "2399"]

1. c4 {[%clk 01:24:28]} {[%emt 00:06:31]} Nf6 {[%clk 01:21:45]} {[%emt
00:09:16]} 2. Nc3 {[%clk 01:22:56]} {[%emt 00:02:02]} d6 {[%clk 01:21:37]}
{[%emt 00:00:37]} 3. d4 {[%clk 01:22:20]} {[%emt 00:01:06]} e5 {[%clk
01:21:53]} {[%emt 00:00:15]} 4. Nf3 {[%clk 01:21:29]} {[%emt 00:01:20]} Nbd7
{[%clk 01:22:17]} {[%emt 00:00:07]} 5. g3 {[%clk 01:14:43]} {[%emt 00:07:16]}
c6 {[%clk 01:20:33]} {[%emt 00:02:14]} 6. e4 {[%clk 01:04:44]} {[%emt
00:10:29]} g6 {[%clk 01:19:19]} {[%emt 00:01:43]} 7. Bg2 {[%clk 01:04:41]}
{[%emt 00:00:33]} Bg7 {[%clk 01:19:44]} {[%emt 00:00:05]} 8. O-O {[%clk
01:05:08]} {[%emt 00:00:03]} O-O {[%clk 01:20:09]} {[%emt 00:00:05]} 9. h3
{[%clk 01:04:45]} {[%emt 00:00:53]} Qe7 {[%clk 01:17:17]} {[%emt 00:03:22]} 10.
Re1 {[%clk 01:03:09]} {[%emt 00:02:06]} h6 {[%clk 01:17:21]} {[%emt 00:00:26]}
11. b3 {[%clk 01:01:43]} {[%emt 00:01:57]} a5 {[%clk 01:12:48]} {[%emt
00:05:03]} 12. Ba3 {[%clk 00:52:21]} {[%emt 00:09:51]} exd4 {[%clk 01:13:07]}
{[%emt 00:00:11]} 13. Qxd4 {[%clk 00:50:38]} {[%emt 00:02:13]} Nc5 {[%clk
01:10:30]} {[%emt 00:03:07]} 14. e5 {[%clk 00:42:20]} {[%emt 00:08:48]} Nfd7
{[%clk 01:09:52]} {[%emt 00:01:07]} 15. Rad1 {[%clk 00:39:21]} {[%emt
00:03:28]} Re8 {[%clk 00:56:59]} {[%emt 00:13:24]} 16. Qd2 {[%clk 00:36:22]}
{[%emt 00:03:29]} dxe5 {[%clk 00:48:39]} {[%emt 00:08:50]} 17. Qe3 {[%clk
00:33:26]} {[%emt 00:03:26]} Bf8 {[%clk 00:37:12]} {[%emt 00:11:57]} 18. Na4
{[%clk 00:29:59]} {[%emt 00:03:57]} e4 {[%clk 00:30:33]} {[%emt 00:07:09]} 19.
Rxd7 {[%clk 00:30:07]} {[%emt 00:00:23]} Bxd7 {[%clk 00:30:27]} {[%emt
00:00:36]} 20. Bxc5 {[%clk 00:30:13]} {[%emt 00:00:24]} Qf6 {[%clk 00:26:20]}
{[%emt 00:04:37]} 21. Nd2 {[%clk 00:28:44]} {[%emt 00:01:58]} Qh8 {[%clk
00:22:35]} {[%emt 00:04:16]} 22. Bxf8 {[%clk 00:22:34]} {[%emt 00:06:40]} Kxf8
{[%clk 00:20:56]} {[%emt 00:02:09]} 23. Nc5 {[%clk 00:22:47]} {[%emt 00:00:17]}
Bc8 {[%clk 00:20:16]} {[%emt 00:01:10]} 24. Ndxe4 {[%clk 00:20:08]} {[%emt
00:03:08]} f5 {[%clk 00:13:25]} {[%emt 00:07:22]} 25. Qf4 {[%clk 00:19:44]}
{[%emt 00:00:53]} Qe5 {[%clk 00:11:06]} {[%emt 00:02:49]} 26. Qxh6+ {[%clk
00:19:54]} {[%emt 00:00:20]} Qg7 {[%clk 00:11:33]} {[%emt 00:00:03]} 27. Qf4
{[%clk 00:20:00]} {[%emt 00:00:24]} Qe5 {[%clk 00:11:59]} {[%emt 00:00:04]} 28.
Qf3 {[%clk 00:12:56]} {[%emt 00:07:31]} Kg7 {[%clk 00:11:07]} {[%emt 00:01:25]}
29. Qd1 {[%clk 00:12:27]} {[%emt 00:00:59]} fxe4 {[%clk 00:07:22]} {[%emt
00:04:16]} 30. Rxe4 {[%clk 00:12:00]} {[%emt 00:00:57]} Bg4 {[%clk 00:07:51]}
31. Qxg4 {[%clk 00:11:03]} {[%emt 00:01:27]} Qxc5 {[%clk 00:08:10]} {[%emt
00:00:11]} 32. Qd7+ {[%clk 00:10:30]} {[%emt 00:01:02]} Kf8 {[%clk 00:07:17]}
{[%emt 00:01:23]} 33. Rf4+ {[%clk 00:10:48]} {[%emt 00:00:12]} Qf5 {[%clk
00:07:45]} {[%emt 00:00:03]} 34. Rxf5+ {[%clk 00:11:12]} {[%emt 00:00:05]} gxf5
{[%clk 00:08:11]} {[%emt 00:00:04]} 35. Qxf5+ {[%clk 00:11:03]} {[%emt
00:00:39]} Ke7 {[%clk 00:08:39]} {[%emt 00:00:02]} 36. Qh7+ {[%clk 00:11:19]}
{[%emt 00:00:13]} Kd6 {[%clk 00:08:57]} {[%emt 00:00:13]} 37. Qxb7 {[%clk
00:11:43]} {[%emt 00:00:06]} Rac8 {[%clk 00:09:25]} {[%emt 00:00:02]} 38. h4
{[%clk 00:11:27]} {[%emt 00:00:46]} 1-0


[ePGN "0.1;DGT LiveChess/2.2.5"]

[Event "20th Rochefort Chess Festival - Masters"]
[Site "Rochefort, France"]
[Date "2022.02.17"]
[Round "8.5"]
[White "Dalaud, Dorian"]
[Black "Duboue, Peio"]
[Result "1/2-1/2"]
[TimeControl "1h30 + [30'']"]
[WhiteElo "2272"]
[BlackElo "2412"]

1. e4 {[%clk 01:24:39]} {[%emt 00:06:20]} d5 {[%clk 01:30:54]} {[%emt
00:00:07]} 2. exd5 {[%clk 01:24:10]} {[%emt 00:00:59]} Nf6 {[%clk 01:31:18]}
{[%emt 00:00:05]} 3. d4 {[%clk 01:24:02]} {[%emt 00:00:38]} Bg4 {[%clk
01:31:30]} {[%emt 00:00:19]} 4. f3 {[%clk 01:20:18]} {[%emt 00:04:15]} Bf5
{[%clk 01:31:55]} {[%emt 00:00:04]} 5. g4 {[%clk 01:14:59]} {[%emt 00:05:48]}
Bg6 {[%clk 01:32:21]} {[%emt 00:00:04]} 6. c4 {[%clk 01:15:25]} {[%emt
00:00:05]} e6 {[%clk 01:32:39]} {[%emt 00:00:11]} 7. Nc3 {[%clk 01:15:21]}
{[%emt 00:00:34]} Nbd7 {[%clk 01:24:44]} {[%emt 00:08:24]} 8. h4 {[%clk
01:01:36]} {[%emt 00:14:16]} h6 {[%clk 01:23:29]} {[%emt 00:01:45]} 9. h5
{[%clk 01:00:32]} {[%emt 00:01:34]} Bh7 {[%clk 01:23:34]} {[%emt 00:00:24]} 10.
dxe6 {[%clk 00:59:25]} {[%emt 00:01:38]} Qe7 {[%clk 01:23:31]} {[%emt
00:00:33]} 11. Kf2 {[%clk 00:50:35]} {[%emt 00:09:20]} fxe6 {[%clk 01:22:57]}
{[%emt 00:01:04]} 12. Nb5 {[%clk 00:50:25]} {[%emt 00:00:40]} O-O-O {[%clk
01:16:07]} {[%emt 00:07:19]} 13. Nxa7+ {[%clk 00:43:52]} {[%emt 00:07:04]} Kb8
{[%clk 01:16:35]} {[%emt 00:00:01]} 14. Nb5 {[%clk 00:43:39]} {[%emt 00:00:43]}
e5 {[%clk 01:05:50]} {[%emt 00:11:16]} 15. Qa4 {[%clk 00:37:24]} {[%emt
00:06:44]} c6 {[%clk 01:01:05]} {[%emt 00:05:15]} 16. Qa7+ {[%clk 00:27:07]}
{[%emt 00:10:47]} Kc8 {[%clk 01:01:34]} {[%emt 00:00:02]} 17. Bd2 {[%clk
00:26:19]} {[%emt 00:01:18]} cxb5 {[%clk 00:53:23]} {[%emt 00:08:41]} 18. cxb5
{[%clk 00:25:41]} {[%emt 00:01:08]} Nc5 {[%clk 00:52:36]} {[%emt 00:01:18]} 19.
dxc5 {[%clk 00:14:27]} {[%emt 00:11:44]} Rxd2+ {[%clk 00:51:15]} {[%emt
00:01:50]} 20. Ke1 {[%clk 00:11:56]} {[%emt 00:03:01]} Rd4 {[%clk 00:49:37]}
{[%emt 00:02:08]} 21. Rc1 {[%clk 00:10:31]} {[%emt 00:01:55]} Qc7 {[%clk
00:35:48]} {[%emt 00:14:20]} 22. b6 {[%clk 00:05:12]} {[%emt 00:05:49]} Qb8
{[%clk 00:29:27]} {[%emt 00:06:51]} 23. Bb5 {[%clk 00:04:44]} {[%emt 00:00:59]}
Be7 {[%clk 00:24:52]} {[%emt 00:05:05]} 24. Ne2 {[%clk 00:03:26]} {[%emt
00:01:48]} Qxa7 {[%clk 00:22:17]} {[%emt 00:03:05]} 25. bxa7 {[%clk 00:03:47]}
{[%emt 00:00:08]} Kc7 {[%clk 00:22:45]} {[%emt 00:00:02]} 26. Nxd4 {[%clk
00:03:18]} {[%emt 00:01:00]} exd4 {[%clk 00:23:13]} {[%emt 00:00:01]} 27. c6
{[%clk 00:03:23]} {[%emt 00:00:25]} b6 {[%clk 00:22:18]} {[%emt 00:01:26]} 28.
Rc4 {[%clk 00:01:45]} {[%emt 00:02:08]} Bd3 {[%clk 00:22:10]} {[%emt 00:00:37]}
29. Ra4 {[%clk 00:01:43]} {[%emt 00:00:32]} Bxb5 {[%clk 00:22:38]} {[%emt
00:00:02]} 30. a8=Q {[%clk 00:02:05]} {[%emt 00:00:08]} Rxa8 {[%clk 00:23:07]}
{[%emt 00:00:02]} 31. Rxa8 {[%clk 00:02:30]} {[%emt 00:00:06]} Bxc6 {[%clk
00:23:24]} {[%emt 00:00:13]} 32. Ra7+ {[%clk 00:02:35]} {[%emt 00:00:25]} Bb7
{[%clk 00:23:10]} {[%emt 00:00:44]} 33. Ke2 {[%clk 00:01:12]} {[%emt 00:01:52]}
Kb8 {[%clk 00:22:45]} {[%emt 00:00:56]} 34. Rxb7+ {[%clk 00:00:47]} {[%emt
00:00:55]} Kxb7 {[%clk 00:23:14]} {[%emt 00:00:01]} 35. Kd3 {[%clk 00:00:57]}
{[%emt 00:00:20]} Bc5 {[%clk 00:23:43]} {[%emt 00:00:01]} 36. Rc1 {[%clk
00:00:43]} {[%emt 00:00:44]} Nd5 {[%clk 00:23:11]} {[%emt 00:01:01]} 1/2-1/2

[Event "20th Rochefort Chess Festival - Masters"]
[Site "Rochefort, France"]
[Date "2022.02.17"]
[Round "8.3"]
[White "Demuth, Adrien"]
[Black "Dudognon, Thibault"]
[Result "1-0"]
[TimeControl "1h30 + [30'']"]
[WhiteElo "2489"]
[BlackElo "2294"]

1. d4 {[%clk 01:30:57]} {[%emt 00:00:03]} d5 {[%clk 01:30:23]} {[%emt
00:00:37]} 2. Bf4 {[%clk 01:31:16]} {[%emt 00:00:11]} Nf6 {[%clk 01:30:43]}
{[%emt 00:00:10]} 3. e3 {[%clk 01:31:38]} {[%emt 00:00:08]} c5 {[%clk
01:31:05]} {[%emt 00:00:08]} 4. dxc5 {[%clk 01:31:26]} {[%emt 00:00:44]} Nc6
{[%clk 01:29:28]} {[%emt 00:02:06]} 5. Bb5 {[%clk 01:31:23]} {[%emt 00:00:33]}
Bd7 {[%clk 01:23:31]} {[%emt 00:06:26]} 6. c3 {[%clk 01:28:08]} {[%emt
00:03:46]} a5 {[%clk 01:21:25]} {[%emt 00:02:36]} 7. Nf3 {[%clk 01:06:15]}
{[%emt 00:22:22]} e6 {[%clk 01:21:18]} {[%emt 00:00:37]} 8. c4 {[%clk
00:57:21]} {[%emt 00:09:24]} Bxc5 {[%clk 01:18:19]} {[%emt 00:03:29]} 9. Nc3
{[%clk 00:57:03]} {[%emt 00:00:49]} Bb4 {[%clk 01:17:10]} {[%emt 00:01:39]} 10.
O-O {[%clk 00:57:06]} {[%emt 00:00:27]} dxc4 {[%clk 01:12:10]} {[%emt
00:05:29]} 11. Bxc4 {[%clk 00:56:09]} {[%emt 00:01:28]} O-O {[%clk 01:05:44]}
{[%emt 00:06:55]} 12. Rc1 {[%clk 00:50:11]} {[%emt 00:06:28]} Ne7 {[%clk
00:58:31]} {[%emt 00:07:43]} 13. Bg5 {[%clk 00:45:54]} {[%emt 00:04:47]} Bc6
{[%clk 00:54:57]} {[%emt 00:04:03]} 14. Nd4 {[%clk 00:40:57]} {[%emt 00:05:28]}
Bxc3 {[%clk 00:49:18]} {[%emt 00:06:09]} 15. Rxc3 {[%clk 00:40:25]} {[%emt
00:01:02]} Bd5 {[%clk 00:42:11]} {[%emt 00:07:37]} 16. Bxf6 {[%clk 00:25:46]}
{[%emt 00:15:09]} gxf6 {[%clk 00:41:55]} {[%emt 00:00:45]} 17. Bxd5 {[%clk
00:24:46]} {[%emt 00:01:31]} Qxd5 {[%clk 00:39:13]} {[%emt 00:03:11]} 18. Rc7
{[%clk 00:24:19]} {[%emt 00:00:57]} Ng6 {[%clk 00:35:24]} {[%emt 00:04:18]} 19.
Qf3 {[%clk 00:21:20]} {[%emt 00:03:29]} Qxf3 {[%clk 00:31:13]} {[%emt
00:04:41]} 20. Nxf3 {[%clk 00:17:39]} {[%emt 00:04:12]} b6 {[%clk 00:30:29]}
{[%emt 00:01:14]} 21. Rfc1 {[%clk 00:17:46]} {[%emt 00:00:23]} Rfd8 {[%clk
00:30:00]} {[%emt 00:00:59]} 22. Kf1 {[%clk 00:18:08]} {[%emt 00:00:08]} Nf8
{[%clk 00:29:15]} {[%emt 00:01:15]} 23. Rb7 {[%clk 00:14:31]} {[%emt 00:04:07]}
Rab8 {[%clk 00:28:52]} {[%emt 00:00:53]} 24. Rxb8 {[%clk 00:14:50]} {[%emt
00:00:11]} Rxb8 {[%clk 00:29:20]} {[%emt 00:00:01]} 25. Rc7 {[%clk 00:15:14]}
{[%emt 00:00:06]} e5 {[%clk 00:23:49]} {[%emt 00:06:01]} 26. Nh4 {[%clk
00:11:36]} {[%emt 00:04:08]} Ne6 {[%clk 00:24:15]} {[%emt 00:00:05]} 27. Rc6
{[%clk 00:12:02]} {[%emt 00:00:04]} Kf8 {[%clk 00:20:01]} {[%emt 00:04:44]} 28.
Nf5 {[%clk 00:11:14]} {[%emt 00:01:18]} Ke8 {[%clk 00:20:00]} {[%emt 00:00:31]}
29. Rd6 {[%clk 00:10:34]} {[%emt 00:01:11]} b5 {[%clk 00:17:07]} {[%emt
00:03:23]} 30. Ra6 {[%clk 00:09:19]} {[%emt 00:01:45]} a4 {[%clk 00:16:23]}
{[%emt 00:01:14]} 31. Ra7 {[%clk 00:08:29]} {[%emt 00:01:21]} Rb6 {[%clk
00:16:31]} {[%emt 00:00:22]} 32. Ke2 {[%clk 00:06:47]} {[%emt 00:02:12]} Rc6
{[%clk 00:16:40]} {[%emt 00:00:20]} 33. Kd2 {[%clk 00:06:24]} {[%emt 00:00:53]}
Nc7 {[%clk 00:15:52]} {[%emt 00:01:18]} 34. Rb7 {[%clk 00:06:26]} {[%emt
00:00:28]} Kd7 {[%clk 00:15:19]} {[%emt 00:01:03]} 35. Rb8 {[%clk 00:06:10]}
{[%emt 00:00:45]} Ra6 {[%clk 00:06:06]} {[%emt 00:09:43]} 36. a3 {[%clk
00:03:54]} {[%emt 00:02:47]} Ra8 {[%clk 00:05:59]} {[%emt 00:00:36]} 37. Rxa8
{[%clk 00:03:17]} {[%emt 00:01:07]} Nxa8 {[%clk 00:06:28]} {[%emt 00:00:01]} 38.
Nh6 {[%clk 00:01:21]} {[%emt 00:02:26]} Ke6 {[%clk 00:06:36]} {[%emt 00:00:21]}
39. Kc3 {[%clk 00:01:48]} {[%emt 00:00:04]} Nb6 {[%clk 00:04:17]} {[%emt
00:02:49]} 40. Kb4 {[%clk 00:02:09]} {[%emt 00:00:10]} Nc4 {[%clk 00:04:46]}
{[%emt 00:00:01]} 41. Kxb5 {[%clk 00:02:33]} {[%emt 00:00:06]} Nxb2 {[%clk
00:05:10]} {[%emt 00:00:05]} 42. e4 {[%clk 00:02:45]} {[%emt 00:00:19]} Nd3
{[%clk 00:03:54]} {[%emt 00:01:45]} 43. f3 {[%clk 00:03:04]} {[%emt 00:00:12]}
Ne1 {[%clk 00:04:21]} {[%emt 00:00:03]} 44. Kxa4 {[%clk 00:02:50]} {[%emt
00:00:44]} Kd6 {[%clk 00:04:45]} {[%emt 00:00:05]} 45. Kb5 {[%clk 00:01:46]}
{[%emt 00:01:35]} Kc7 {[%clk 00:05:10]} {[%emt 00:00:05]} 46. Ng8 {[%clk
00:01:22]} {[%emt 00:00:54]} f5 {[%clk 00:03:39]} {[%emt 00:02:00]} 47. exf5
{[%clk 00:01:20]} {[%emt 00:00:33]} Nxg2 {[%clk 00:04:04]} {[%emt 00:00:04]} 48.
Nh6 {[%clk 00:01:23]} {[%emt 00:00:28]} Nh4 {[%clk 00:03:46]} {[%emt 00:00:48]}
49. Nxf7 {[%clk 00:01:34]} {[%emt 00:00:20]} Nxf3 {[%clk 00:03:41]} {[%emt
00:00:34]} 50. f6 {[%clk 00:00:50]} {[%emt 00:01:14]} e4 {[%clk 00:02:24]}
{[%emt 00:01:46]} 51. Kc4 {[%clk 00:01:05]} {[%emt 00:00:15]} Kd7 {[%clk
00:02:10]} {[%emt 00:00:44]} 52. a4 {[%clk 00:01:11]} {[%emt 00:00:25]} Ke6
{[%clk 00:01:50]} {[%emt 00:00:49]} 53. Nd8+ {[%clk 00:01:25]} {[%emt
00:00:16]} Kxf6 {[%clk 00:02:10]} {[%emt 00:00:10]} 54. a5 {[%clk 00:01:51]}
{[%emt 00:00:05]} Ne5+ {[%clk 00:02:23]} {[%emt 00:00:16]} 55. Kc3 {[%clk
00:01:51]} {[%emt 00:00:30]} Nd7 {[%clk 00:01:40]} {[%emt 00:01:13]} 56. Kd4
{[%clk 00:01:06]} {[%emt 00:01:14]} Ke7 {[%clk 00:00:57]} {[%emt 00:01:14]} 57.
Nb7 {[%clk 00:00:54]} {[%emt 00:00:43]} Nb8 {[%clk 00:01:04]} {[%emt 00:00:23]}
58. Kxe4 {[%clk 00:00:53]} {[%emt 00:00:31]} Na6 {[%clk 00:01:00]} {[%emt
00:00:34]} 59. Kd5 {[%clk 00:00:50]} {[%emt 00:00:34]} h5 {[%clk 00:00:59]}
{[%emt 00:00:30]} 60. h4 {[%clk 00:00:44]} {[%emt 00:00:37]} Kf6 {[%clk
00:00:57]} {[%emt 00:00:32]} 61. Nc5 {[%clk 00:00:50]} {[%emt 00:00:23]} Nb4+
{[%clk 00:00:56]} {[%emt 00:00:31]} 62. Ke4 {[%clk 00:00:53]} {[%emt 00:00:27]}
Nc6 {[%clk 00:00:51]} {[%emt 00:00:35]} 63. a6 {[%clk 00:01:19]} {[%emt
00:00:04]} Na7 {[%clk 00:01:14]} {[%emt 00:00:06]} 64. Nd3 {[%clk 00:01:08]}
{[%emt 00:00:41]} Nc8 {[%clk 00:00:47]} {[%emt 00:00:58]} 65. Nf4 {[%clk
00:01:25]} {[%emt 00:00:13]} Nd6+ {[%clk 00:01:09]} {[%emt 00:00:09]} 66. Kf3
{[%clk 00:01:01]} {[%emt 00:00:53]} Nb5 {[%clk 00:01:16]} {[%emt 00:00:23]} 67.
Nxh5+ {[%clk 00:01:27]} {[%emt 00:00:05]} Kf5 {[%clk 00:01:37]} {[%emt
00:00:09]} 68. Ng3+ {[%clk 00:01:43]} {[%emt 00:00:13]} Kg6 {[%clk 00:01:54]}
{[%emt 00:00:13]} 69. Kg4 {[%clk 00:02:07]} {[%emt 00:00:07]} 1-0